bitfinex-derivatives/quotes_ETHF0:USTF0_20250905
["timestamp","ask_amount","ask_price","bid_price","bid_amount"]
[1757095261858,0.2907,4293.4,4293.3,3.9018]
[1757095262058,3.3418,4294.2,4293.8,0.202]
[1757095262059,0.70034033,4293.9,4293.8,0.202]
[1757095262265,1.30039367,4293.9,4293.8,0.202]
[1757095262862,1.30039367,4293.9,4293.8,0.4019]
[1757095263467,1.30039367,4293.9,4293.5,0.2921]
[1757095263664,0.6882,4293.6,4293.5,0.202]
[1757095263964,0.6882,4293.6,4293.5,0.4019]
[1757095265364,0.4942,4293.6,4293.5,0.694]
[1757095265662,0.2907,4293.6,4293.5,0.694]
[1757095265864,0.4942,4293.6,4293.5,0.694]
[1757095266362,0.4942,4293.6,4293.5,0.202]
[1757095266363,0.6882,4293.6,4293.5,0.202]
[1757095266565,0.2035,4292.9,4292.8,4.1378]
[1757095266764,0.4942,4292.9,4292.8,4.1378]
[1757095267369,0.1277,4293.5,4292.9,0.2921]
[1757095267570,0.8159,4293.5,4293.4,0.202]
[1757095268164,0.8159,4293.5,4293.4,0.4019]
[1757095268665,0.8159,4293.5,4292.8,3.2078]
[1757095268977,0.8159,4293.0,4292.9,0.202]
[1757095270461,0.5252,4293.0,4292.3,3.7359]
[1757095270769,0.2907,4292.9,4292.3,3.7359]
[1757095271070,0.4942,4292.4,4292.3,3.9018]
[1757095271570,0.6882,4292.4,4292.3,3.6097]
[1757095273669,0.3975,4291.9,4291.8,3.4098]
[1757095273964,0.6882,4291.9,4291.8,0.694]
[1757095275469,0.6882,4291.9,4291.3,3.7359]
[1757095275771,0.3975,4291.8,4291.7,0.202]
[1757095275972,0.6882,4291.8,4291.7,0.202]
[1757095277065,0.6882,4291.8,4291.7,0.4019]
[1757095277066,0.4942,4291.8,4291.7,0.4019]
[1757095277367,0.4942,4292.7,4292.6,0.4019]
[1757095277572,1.29004032,4292.7,4292.6,0.694]
[1757095278171,0.60184032,4292.7,4292.6,3.9018]
[1757095278371,0.2962,4292.9,4292.7,0.2973]
[1757095278570,0.2962,4292.9,4292.8,0.6958]
[1757095279270,0.2962,4293.2,4293.1,0.3985]
[1757095279469,0.4981,4293.2,4293.1,0.6958]
[1757095279673,1.3089071,4293.2,4292.7,0.2973]
[1757095279869,0.1278,4293.0,4292.9,0.195]
[1757095280178,0.1278,4293.0,4292.9,0.3985]
[1757095280179,0.8347,4293.0,4292.9,0.3985]
[1757095280372,0.8347,4293.0,4292.9,0.6958]
[1757095281375,1.10014395,4293.0,4292.9,0.6958]
[1757095281671,0.7069,4293.1,4293.0,0.3985]
[1757095281876,1.30893945,4293.1,4293.0,0.3985]
[1757095283574,1.30893945,4293.1,4293.0,0.195]
[1757095283774,0.7069,4292.7,4292.6,3.4028]
[1757095284773,0.7069,4292.7,4292.6,3.2078]
[1757095284975,0.2019,4292.1,4292.0,0.4923]
[1757095285176,0.4981,4292.1,4292.0,0.6958]
[1757095286679,0.2962,4292.5,4292.1,0.2973]
[1757095286873,0.1278,4293.0,4292.7,0.3985]
[1757095286874,0.9429,4292.8,4292.7,0.3985]
[1757095287074,1.54443172,4292.8,4292.7,0.3985]
[1757095287968,1.54443172,4292.8,4291.8,3.2078]
[1757095287969,1.24823172,4292.8,4291.8,3.2078]
[1757095288176,0.6259,4292.0,4291.9,0.6958]
[1757095288486,0.4981,4292.0,4291.9,0.6958]
[1757095288780,0.2962,4292.0,4291.9,0.6958]
[1757095290784,0.8347,4292.0,4291.9,0.6958]
[1757095291779,0.8347,4292.0,4291.9,0.3985]
[1757095291984,0.2962,4291.9,4291.8,3.2078]
[1757095292181,0.7069,4291.9,4291.8,3.4028]
[1757095292693,0.7069,4291.9,4291.8,0.195]
[1757095294087,0.7069,4291.9,4291.8,0.6958]
[1757095294582,0.1278,4292.5,4291.8,0.6958]
[1757095294583,0.236,4292.4,4292.0,0.0615]
[1757095294787,0.1278,4293.0,4292.3,0.2973]
[1757095294788,0.2962,4292.9,4292.3,0.2973]
[1757095295088,1.30822548,4292.8,4292.7,0.3985]
[1757095296789,1.30822548,4292.8,4292.7,0.6958]
[1757095297080,1.30822548,4292.8,4292.7,0.195]
[1757095297284,0.8347,4292.5,4292.4,0.195]
[1757095297785,0.8347,4292.5,4292.0,0.222]
[1757095298087,0.8347,4292.0,4291.9,0.195]
[1757095298683,0.8347,4292.0,4291.9,0.3985]
[1757095299577,0.8347,4292.0,4291.9,0.195]
[1757095299785,0.7069,4291.9,4291.8,3.2078]
[1757095300091,0.7069,4291.9,4291.8,3.4028]
[1757095301185,0.7069,4291.9,4291.8,0.195]
[1757095303986,0.7069,4291.9,4291.8,0.3985]
[1757095304285,0.4107,4291.9,4291.4,3.2078]
[1757095304588,0.6259,4291.5,4291.4,3.9036]
[1757095305188,0.2962,4291.5,4291.4,3.9036]
[1757095305487,0.1278,4292.0,4291.8,0.6958]
[1757095305488,0.4981,4291.9,4291.8,0.6958]
[1757095305688,0.2962,4292.4,4291.9,0.2973]
[1757095305887,0.1278,4292.5,4292.2,0.195]
[1757095305888,1.30843458,4292.3,4292.2,0.195]
[1757095306083,1.30843458,4292.3,4291.4,3.9036]
[1757095306084,0.8347,4291.5,4291.4,3.9036]
[1757095306291,0.8347,4291.5,4291.4,3.6063]
[1757095307188,0.8347,4291.5,4291.4,3.2078]
[1757095307493,0.7069,4290.9,4290.8,3.4028]
[1757095309792,0.7069,4290.9,4290.8,3.6032]
[1757095309989,0.7069,4290.9,4290.8,3.9152]
[1757095310196,0.2962,4290.9,4290.8,3.9152]
[1757095310383,0.5082,4290.9,4290.8,3.9152]
[1757095310884,3.2078,4291.8,4290.8,3.9152]
[1757095310885,0.3288,4292.0,4291.4,0.7157]
[1757095311192,0.8274,4291.5,4291.4,0.4037]
[1757095311791,0.5082,4291.5,4291.4,0.7157]
[1757095311994,0.8274,4291.5,4291.4,0.4037]
[1757095312191,0.5082,4291.5,4291.4,0.7157]
[1757095313790,0.6267,4291.5,4291.4,0.7157]
[1757095313996,0.8274,4291.5,4291.4,0.7157]
[1757095314196,0.8274,4291.5,4291.4,0.4037]
[1757095314393,0.3288,4292.0,4291.4,0.4037]
[1757095314592,0.2962,4291.8,4291.5,0.312]
[1757095314787,0.2962,4291.8,4291.7,0.7157]
[1757095315188,0.2962,4292.3,4291.8,0.312]
[1757095315389,0.5082,4292.3,4292.2,0.7157]
[1757095315592,1.30997484,4292.3,4292.2,0.7157]
[1757095315794,1.30997484,4292.3,4292.2,0.4037]
[1757095315995,1.30997484,4292.3,4291.8,3.5198]
[1757095315996,0.1185,4292.0,4291.8,3.5198]
[1757095316297,0.8274,4292.0,4291.9,0.2033]
[1757095316899,0.8274,4292.0,4291.9,0.4037]
[1757095317998,0.8274,4292.0,4291.9,0.2033]
[1757095318994,0.5312,4291.5,4291.4,0.2033]
[1757095319296,0.8274,4291.5,4291.4,0.4037]
[1757095319486,0.8274,4291.5,4291.4,0.7157]
[1757095320194,0.7089,4291.5,4291.4,0.7157]
[1757095320393,0.8274,4291.5,4291.4,0.7157]
[1757095321192,0.2962,4291.5,4291.4,0.7157]
[1757095321493,3.2078,4292.4,4292.0,0.312]
[1757095321797,0.1278,4292.5,4291.9,0.6397]
[1757095321798,0.5312,4292.0,4291.9,0.6397]
[1757095321993,0.8274,4292.0,4291.8,0.236]
[1757095322501,0.8274,4292.0,4291.9,0.4037]
[1757095322698,0.8274,4292.0,4291.8,0.236]
[1757095322894,0.8274,4292.0,4291.5,0.312]
[1757095323395,0.8274,4292.0,4291.3,3.2078]
[1757095323592,0.5312,4291.5,4291.4,0.6397]
[1757095323798,0.8274,4291.5,4291.4,0.6397]
[1757095324188,0.8274,4291.5,4291.4,0.9517]
[1757095324397,0.1185,4292.0,4291.4,0.6397]
[1757095324596,0.5082,4291.9,4291.8,0.7157]
[1757095325000,0.7089,4291.9,4291.8,0.4037]
[1757095325192,0.7089,4291.9,4291.8,0.7157]
[1757095325388,0.5082,4292.4,4292.3,0.4037]
[1757095325601,1.31035334,4292.4,4292.3,0.7157]
[1757095325900,1.31035334,4292.4,4292.3,0.4037]
[1757095326401,1.31035334,4292.4,4292.3,0.7157]
[1757095326702,1.31035334,4292.4,4292.3,0.4037]
[1757095326902,1.10965334,4292.4,4292.3,0.7157]
[1757095327101,3.2078,4292.8,4292.3,0.4037]
[1757095327303,3.2078,4292.8,4292.4,0.312]
[1757095327304,0.2962,4292.6,4292.4,0.312]
[1757095327497,1.4289929,4292.5,4292.4,0.4037]
[1757095328204,1.4289929,4292.5,4291.8,3.2078]
[1757095328402,0.5082,4291.9,4291.8,3.9235]
[1757095328599,0.7089,4291.9,4291.8,3.6115]
[1757095328800,0.5082,4291.9,4291.8,3.9235]
[1757095329005,0.2962,4291.9,4291.8,3.9235]
[1757095329602,0.7089,4291.9,4291.8,3.2078]
[1757095329994,0.2962,4291.8,4291.3,3.2078]
[1757095330200,0.7089,4291.4,4291.3,3.2078]
[1757095330802,0.7089,4291.4,4290.0,0.0615]
[1757095330803,0.7089,4290.4,4290.3,3.6115]
[1757095331699,0.7089,4290.4,4290.3,3.2078]
[1757095332207,0.7089,4290.4,4290.3,3.4111]
[1757095332705,0.7089,4290.4,4290.3,3.2078]
[1757095334302,0.5082,4290.4,4290.3,3.9235]
[1757095335206,0.7089,4290.4,4290.3,3.6115]
[1757095335398,0.7089,4290.4,4290.3,3.9235]
[1757095336206,0.5082,4290.4,4290.3,3.9235]
[1757095336801,0.212,4290.6,4290.5,0.7157]
[1757095337008,0.1185,4291.5,4290.5,0.7157]
[1757095337009,0.2962,4291.2,4291.0,0.312]
[1757095337305,0.6267,4291.0,4290.9,0.7157]
[1757095337508,0.5322,4291.3,4291.0,0.312]
[1757095337702,0.236,4291.3,4291.2,0.4037]
[1757095337902,0.9449,4291.3,4291.2,0.4037]
[1757095341615,0.9449,4291.3,4291.2,0.2033]
[1757095341918,0.8387,4291.0,4290.9,0.2146]
[1757095342415,0.8387,4291.0,4290.5,0.3205]
[1757095342615,0.8387,4291.0,4290.9,0.2146]
[1757095343918,0.3109,4291.0,4290.9,0.7419]
[1757095344118,0.5111,4291.0,4290.9,0.7419]
[1757095345015,0.8387,4291.0,4290.5,0.3205]
[1757095345410,0.7146,4290.4,4290.3,3.2078]
[1757095345819,0.7146,4290.4,4290.3,3.4224]
[1757095346210,0.7146,4290.4,4290.3,3.6292]
[1757095346816,0.7146,4290.4,4290.3,3.2078]
[1757095348509,0.7146,4290.4,4290.3,3.6292]
[1757095348715,0.5111,4290.4,4290.3,3.9497]
[1757095348915,0.5111,4290.7,4290.6,0.4214]
[1757095349216,0.7146,4290.7,4290.6,0.4214]
[1757095350120,0.7146,4290.7,4290.6,0.2146]
[1757095352819,0.1241,4290.5,4290.3,3.2078]
[1757095353025,0.5278,4290.5,4290.4,0.2146]
[1757095353229,0.3109,4290.5,4290.4,0.4214]
[1757095353419,0.8387,4290.5,4290.3,3.2078]
[1757095353626,0.3109,4290.4,4290.3,3.2078]
[1757095353823,0.7146,4290.4,4290.3,3.2078]
[1757095354528,0.7146,4290.4,4290.3,3.9497]
[1757095354827,0.5111,4290.4,4290.3,3.9497]
[1757095355129,0.7146,4290.4,4290.3,3.9497]
[1757095355429,0.7146,4290.4,4290.3,3.6292]
[1757095355620,0.7146,4290.4,4290.3,3.4224]
[1757095355927,0.7146,4290.4,4290.3,3.2078]
[1757095356224,0.7146,4290.4,4290.3,3.6292]
[1757095356430,3.4438,4290.9,4290.3,3.9497]
[1757095356431,0.3109,4290.8,4290.3,3.9497]
[1757095356616,0.5469,4291.1,4290.8,0.7419]
[1757095356824,0.236,4291.1,4291.0,0.7419]
[1757095357021,0.236,4291.1,4291.0,0.8602]
[1757095357318,0.7471,4291.1,4291.0,0.7419]
[1757095358419,0.3109,4291.4,4291.3,0.7419]
[1757095358619,0.5111,4291.4,4291.3,0.7419]
[1757095358826,1.11246899,4291.4,4291.3,0.7419]
[1757095359227,1.31596899,4291.4,4291.3,0.4214]
[1757095359628,1.31596899,4291.4,4291.3,0.2146]
[1757095359821,0.1241,4291.0,4290.8,3.2078]
[1757095360027,0.7146,4290.9,4290.8,3.6292]
[1757095360230,0.7146,4290.9,4290.8,3.9497]
[1757095360827,0.5278,4290.5,4290.4,0.2146]
[1757095361028,0.8387,4290.5,4290.4,0.4214]
[1757095361330,0.1241,4291.0,4290.4,0.4214]
[1757095361531,0.3109,4290.9,4290.4,0.7419]
[1757095361729,0.1241,4291.0,4290.4,0.4214]
[1757095361923,0.3109,4290.9,4290.4,0.7419]
[1757095362122,0.1241,4291.0,4290.4,0.4214]
[1757095362425,0.8387,4290.5,4290.4,0.7419]
[1757095362631,0.8387,4290.5,4290.4,0.4214]
[1757095362926,0.8387,4290.5,4290.4,0.2146]
[1757095363429,1.44113039,4290.5,4290.4,0.2146]
[1757095364330,1.44112084,4290.5,4290.4,0.2146]
[1757095364526,0.8387,4290.5,4290.4,0.2146]
[1757095364722,0.7146,4290.4,4290.3,3.2078]
[1757095365228,1.00604942,4290.4,4289.9,0.5565]
[1757095365432,0.7146,4290.3,4290.2,0.4214]
[1757095366627,0.7146,4290.3,4289.8,3.2078]
[1757095366829,0.1241,4290.0,4289.9,0.2146]
[1757095367134,0.5111,4290.0,4289.9,0.7419]
[1757095367833,0.3109,4290.4,4289.9,0.4214]
[1757095368036,0.2002,4290.1,4290.0,0.4214]
[1757095368246,0.503,4290.1,4290.0,0.7419]
[1757095368732,0.7176,4290.1,4290.0,0.4214]
[1757095370232,0.7176,4290.1,4290.0,0.7286]
[1757095371131,0.7176,4290.1,4290.0,0.4214]
[1757095372937,0.7176,4290.1,4290.0,0.7286]
[1757095373633,0.503,4290.1,4290.0,0.7286]
[1757095373829,0.1241,4290.5,4290.1,0.3072]
[1757095374029,0.5494,4290.5,4290.4,0.1945]
[1757095374431,0.2107,4290.0,4289.9,0.6341]
[1757095374630,0.5135,4290.0,4289.9,0.9413]
[1757095374837,0.8456,4290.0,4289.9,0.6341]
[1757095375229,0.8456,4290.0,4289.9,0.3981]
[1757095376533,0.8456,4290.0,4289.9,0.7053]
[1757095376727,0.8456,4290.0,4289.9,0.3981]
[1757095377026,0.5428,4290.0,4289.8,3.2078]
[1757095377229,0.7281,4289.9,4289.8,3.2078]
[1757095377428,0.7281,4289.9,4289.8,3.4023]
[1757095379028,0.7281,4289.9,4289.8,3.2078]
[1757095379333,0.7281,4289.9,4289.8,3.6059]
[1757095379638,0.7281,4289.9,4289.8,3.2078]
[1757095380326,0.7281,4289.9,4289.8,3.6059]
[1757095380533,3.9573,4290.4,4290.3,0.7053]
[1757095380736,4.55908497,4290.4,4290.3,0.7053]
[1757095380940,4.77368497,4290.4,4290.3,0.1945]
[1757095382232,0.1175,4290.0,4289.9,0.1945]
[1757095382534,0.1175,4290.0,4289.3,3.2078]
[1757095382726,0.7281,4289.4,4289.3,3.4023]
[1757095383140,0.7281,4289.4,4289.3,3.6059]
[1757095384043,0.7281,4289.4,4289.3,3.2078]
[1757095384438,1.32947088,4289.4,4289.3,3.2078]
[1757095384737,0.631,4289.0,4288.9,0.3981]
[1757095384931,0.8456,4289.0,4288.9,0.3981]
[1757095385831,0.8456,4289.0,4288.9,0.1945]
[1757095386135,0.8456,4289.0,4288.9,0.3981]
[1757095386433,0.3028,4289.4,4289.0,0.3072]
[1757095386637,0.4253,4289.4,4288.8,3.515]
[1757095386838,0.2107,4288.9,4288.8,3.9131]
[1757095387041,0.5135,4289.4,4289.3,0.1945]
[1757095387235,1.32894711,4289.4,4289.3,0.1945]
[1757095387837,1.32894711,4289.4,4288.9,0.3072]
[1757095388043,0.631,4289.0,4288.9,0.7053]
[1757095389355,0.8456,4289.0,4288.9,0.7053]
[1757095390547,0.8456,4289.0,4288.9,0.3981]
[1757095391357,0.8456,4289.0,4288.8,3.2078]
[1757095391359,0.3028,4288.9,4288.2,3.2078]
[1757095391659,0.7281,4288.3,4288.2,3.9131]
[1757095392057,0.5135,4288.3,4288.2,3.9131]
[1757095393064,0.7281,4288.3,4288.2,3.6059]
[1757095393454,0.7281,4288.9,4288.8,0.1945]
[1757095393653,0.96128,4288.9,4288.8,0.1945]
[1757095394064,0.7281,4288.9,4288.8,0.1945]
[1757095395351,0.5135,4288.9,4288.8,0.7053]
[1757095395658,0.2107,4288.8,4288.7,3.515]
[1757095395857,0.2107,4288.8,4288.7,3.9131]
[1757095395858,0.5135,4288.8,4288.7,3.9131]
[1757095396164,0.3028,4289.3,4288.8,0.3072]
[1757095396456,0.7281,4289.3,4289.2,0.7053]
[1757095396664,0.5135,4289.3,4289.2,0.7053]
[1757095396853,0.3028,4289.4,4289.2,0.3981]
[1757095397056,0.5135,4289.4,4289.3,0.3072]
[1757095397263,0.5135,4289.4,4289.3,0.7053]
[1757095397867,0.7281,4289.4,4289.3,0.7053]
[1757095399059,0.7281,4289.4,4289.3,0.3981]
[1757095400060,0.7281,4289.4,4289.3,0.699]
[1757095400567,0.7281,4289.4,4289.3,0.3981]
[1757095400759,0.7281,4289.4,4289.3,0.699]
[1757095402364,0.7281,4289.4,4289.3,0.3981]
[1757095402868,0.7281,4289.4,4289.3,0.699]
[1757095403163,0.7281,4289.4,4289.3,0.3981]
[1757095404066,0.7281,4289.4,4289.3,0.1945]
[1757095404270,0.4253,4289.4,4289.2,3.2078]
[1757095404460,0.7145,4289.3,4288.6,5.607]
[1757095404657,0.7145,4288.7,4288.6,6.0055]
[1757095404860,0.5177,4288.7,4288.6,6.3064]
[1757095407964,0.1198,4289.0,4288.6,6.3064]
[1757095408168,0.3065,4289.4,4288.9,0.3985]
[1757095408366,0.3065,4289.2,4289.1,0.3985]
[1757095408562,0.236,4289.7,4289.2,0.3009]
[1757095408563,0.3065,4289.4,4289.2,0.3009]
[1757095408763,0.5177,4289.4,4289.3,0.6994]
[1757095409061,0.7145,4289.4,4289.3,0.6994]
[1757095409267,0.7145,4289.4,4289.3,0.3985]
[1757095409663,0.7145,4288.8,4288.7,0.4364]
[1757095409861,0.7145,4288.8,4288.7,0.236]
[1757095410063,0.3065,4288.7,4288.6,3.2078]
[1757095410264,0.7145,4288.7,4288.6,3.2078]
[1757095410663,0.408,4288.3,4288.2,0.4364]
[1757095410867,0.7145,4288.3,4288.1,3.2078]
[1757095411165,0.7145,4288.2,4288.1,3.4082]
[1757095413777,0.7145,4288.2,4288.1,3.6063]
[1757095414273,0.7145,4288.2,4288.1,3.2078]
[1757095415969,1.31608825,4288.2,4288.1,3.2078]
[1757095416869,1.31608825,4288.2,4288.1,3.9072]
[1757095417875,1.31608825,4288.2,4288.1,3.6063]
[1757095418280,1.31608825,4288.2,4288.1,3.2078]
[1757095419165,1.31608825,4288.2,4287.6,0.3009]
[1757095419475,0.236,4288.3,4287.1,0.3009]
[1757095419476,3.5143,4287.9,4287.1,0.3009]
[1757095419676,0.3065,4287.7,4287.1,0.3009]
[1757095419866,0.7145,4287.7,4287.6,0.2004]
[1757095420070,0.7145,4287.7,4287.6,0.3985]
[1757095420372,0.7145,4287.7,4287.6,0.2004]
[1757095420881,0.7145,4287.7,4287.6,0.3985]
[1757095421177,0.7145,4287.7,4287.6,0.6994]
[1757095422476,0.5177,4287.7,4287.6,0.6994]
[1757095422875,0.7145,4287.7,4287.6,0.2004]
[1757095423368,0.3065,4287.7,4287.6,0.3985]
[1757095423673,0.3065,4287.7,4287.6,0.6994]
[1757095423879,0.236,4287.8,4287.7,0.3009]
[1757095424178,0.236,4287.8,4287.7,0.6994]
[1757095424578,0.236,4288.1,4287.8,0.3009]
[1757095424771,0.3065,4288.0,4287.9,0.6994]
[1757095424970,0.5177,4288.0,4287.9,0.6994]
[1757095426883,0.6375,4288.0,4287.9,0.6994]
[1757095427374,0.3065,4288.0,4287.9,0.6994]
[1757095427675,0.5177,4288.0,4287.9,0.6994]
[1757095427874,0.5278,4287.5,4287.4,3.4082]
[1757095428077,0.5177,4287.5,4287.4,3.9072]
[1757095430569,0.3065,4287.5,4287.4,3.9072]
[1757095431367,0.2985,4287.9,4287.4,3.6063]
[1757095431572,0.1198,4288.0,4287.9,0.7125]
[1757095431573,0.2018,4288.0,4287.9,0.7125]
[1757095431773,0.236,4288.2,4288.0,0.3047]
[1757095431972,0.236,4288.2,4288.1,0.7125]
[1757095432686,0.7363,4288.2,4288.1,0.7125]
[1757095432981,0.236,4288.2,4288.1,0.7125]
[1757095433174,0.2985,4288.4,4288.2,0.3047]
[1757095433378,0.5003,4288.4,4288.3,0.7125]
[1757095434280,1.10357536,4288.4,4288.3,0.7125]
[1757095434680,1.10357536,4288.4,4288.3,0.4078]
[1757095434681,1.30297536,4288.4,4288.3,0.4078]
[1757095435977,1.30297536,4288.4,4288.3,0.7125]
[1757095437476,1.30297536,4288.4,4288.3,0.2005]
[1757095437879,1.30297536,4288.4,4288.3,0.7125]
[1757095439289,1.10357536,4288.4,4288.3,0.7125]
[1757095439685,0.60327536,4288.4,4288.3,0.7125]
[1757095439887,0.2985,4288.8,4288.4,0.3047]
[1757095440184,0.60439742,4288.7,4288.6,0.7125]
[1757095440888,0.2985,4289.0,4288.6,4.7125]
[1757095441089,0.60464548,4288.9,4288.8,0.4078]
[1757095441289,0.60464548,4288.9,4288.8,0.7125]
[1757095441588,0.2985,4289.0,4288.8,0.4078]
[1757095441775,0.2985,4289.0,4288.8,0.7125]
[1757095441776,0.60440239,4288.9,4288.8,0.7125]
[1757095441979,0.2985,4289.0,4288.9,0.7125]
[1757095442191,0.90290071,4289.0,4288.9,0.7125]
[1757095443389,1.10470071,4289.0,4288.9,0.7125]
[1757095443591,1.22560071,4289.0,4288.9,0.7125]
[1757095443794,1.42500071,4289.0,4288.9,0.7125]
[1757095444690,1.42500071,4289.0,4288.9,0.4078]
[1757095445093,1.42462659,4289.0,4288.9,0.4078]
[1757095445285,0.8206,4289.0,4288.9,0.7125]
[1757095445482,0.2985,4289.4,4289.3,0.7125]
[1757095445688,0.8206,4289.0,4288.9,0.2005]
[1757095446580,0.2985,4288.9,4288.8,3.2078]
[1757095446781,0.6997,4288.9,4288.8,3.9203]
[1757095446998,0.5003,4288.9,4288.8,3.9203]
[1757095447196,0.6997,4288.9,4288.8,3.9203]
[1757095447692,0.6997,4288.9,4288.8,3.6156]
[1757095449187,0.6997,4288.9,4288.8,3.9203]
[1757095449593,0.1198,4289.5,4289.4,0.2005]
[1757095449594,0.521,4289.5,4289.4,0.2005]
[1757095449785,1.12489912,4289.5,4289.4,3.6156]
[1757095449989,1.12489912,4289.5,4289.4,3.9203]
[1757095450187,1.42339912,4289.5,4289.4,0.4078]
[1757095450691,0.5003,4289.5,4289.4,3.9203]
[1757095450895,0.8206,4290.0,4289.9,0.4078]
[1757095451095,1.42447177,4290.0,4289.9,0.4078]
[1757095451683,1.42447177,4290.0,4289.9,0.2005]
[1757095451889,1.12597177,4290.0,4289.4,3.2078]
[1757095452091,0.8206,4289.5,4289.4,3.2078]
[1757095452299,0.8206,4289.0,4288.9,0.2005]
[1757095452620,0.8206,4289.0,4288.9,0.7125]
[1757095453197,0.5003,4289.0,4288.9,0.7125]
[1757095454197,0.3227,4289.5,4289.4,0.4078]
[1757095454497,0.5221,4289.5,4289.4,0.4078]
[1757095454801,0.8206,4289.5,4289.4,0.4078]
[1757095454989,0.2985,4290.1,4290.0,0.3047]
[1757095455296,0.5003,4290.1,4290.0,0.7125]
[1757095455691,0.1209,4290.5,4290.1,0.3047]
[1757095455992,0.6997,4290.4,4290.3,0.4078]
[1757095457001,0.6997,4290.4,4290.3,0.7125]
[1757095457002,0.5003,4290.4,4290.3,0.7125]
[1757095458300,0.6997,4290.4,4290.3,0.7125]
[1757095460398,0.8314,4290.0,4289.9,3.4227]
[1757095460591,0.5174,4289.5,4289.4,3.6245]
[1757095460901,0.8314,4289.5,4289.4,3.6245]
[1757095461493,0.8314,4289.5,4289.4,3.4227]
[1757095461904,0.8314,4289.5,4289.4,3.2078]
[1757095462597,0.8314,4289.5,4289.4,3.4227]
[1757095465104,0.8314,4289.5,4289.4,3.6245]
[1757095465309,0.8314,4289.5,4289.4,3.9238]
[1757095465605,0.314,4289.8,4289.7,0.4167]
[1757095465797,0.314,4290.0,4289.8,0.2993]
[1757095465998,3.406,4290.1,4290.0,0.4167]
[1757095466300,3.9144,4290.1,4290.0,0.4167]
[1757095468808,0.7066,4290.1,4290.0,0.4167]
[1757095471110,0.7066,4290.1,4290.0,0.716]
[1757095471408,0.7066,4290.1,4290.0,0.4167]
[1757095471920,0.7066,4290.1,4290.0,0.2149]
[1757095472908,0.7066,4290.1,4290.0,0.4167]
[1757095474513,0.7066,4290.1,4290.0,0.2149]
[1757095474811,0.7066,4289.9,4289.8,0.2149]
[1757095475514,0.8314,4289.5,4289.4,3.4227]
[1757095476814,0.8314,4289.5,4289.4,3.9238]
[1757095477313,0.8314,4289.5,4289.4,3.6245]
[1757095478106,0.8314,4289.5,4289.4,3.9238]
[1757095479615,0.5122,4289.5,4289.4,3.9238]
[1757095480004,0.314,4289.9,4289.8,0.716]
[1757095480614,0.5122,4289.9,4289.8,0.716]
[1757095482016,0.7066,4289.9,4289.8,0.4167]
[1757095482516,0.314,4289.9,4289.8,0.716]
[1757095483722,0.5122,4289.9,4289.8,0.716]
[1757095484123,1.11722166,4289.9,4289.8,0.716]
[1757095486521,1.31162166,4289.9,4289.8,0.4167]
[1757095486721,1.31162166,4289.9,4289.8,0.2149]
[1757095487018,0.1248,4289.5,4289.4,3.4438]
[1757095487222,0.8314,4289.5,4289.4,3.6587]
[1757095487424,0.8314,4289.5,4289.4,3.8605]
[1757095487623,0.5122,4289.5,4289.4,3.8605]
[1757095487822,0.5122,4289.5,4289.4,4.1598]
[1757095489124,0.8295,4289.5,4289.4,3.6587]
[1757095489521,0.8295,4289.5,4289.4,4.1522]
[1757095489723,0.314,4289.5,4289.4,4.1522]
[1757095497230,0.1248,4290.0,4289.4,4.1522]
[1757095497432,0.92564761,4289.9,4289.8,0.7051]
[1757095497834,1.32614761,4289.9,4289.8,0.4113]
[1757095498131,0.1227,4289.5,4289.4,3.2078]
[1757095498326,1.44884761,4289.5,4289.4,3.2078]
[1757095500831,1.44884761,4289.5,4289.4,3.4194]
[1757095501129,1.44884761,4289.5,4289.4,3.6191]
[1757095501334,1.13154761,4289.5,4289.4,3.9129]
[1757095501529,0.60584761,4289.5,4289.4,3.9129]
[1757095501734,0.4425,4290.0,4289.4,3.6191]
[1757095502034,0.60540295,4289.9,4289.8,0.7051]
[1757095502234,0.60540295,4289.9,4289.8,4.1489]
[1757095502531,0.7203,4290.4,4290.3,0.4113]
[1757095502732,1.32570833,4290.4,4290.3,0.4113]
[1757095502933,1.32570833,4290.4,4290.3,0.7051]
[1757095503639,1.13110833,4290.4,4290.3,0.7051]
[1757095504229,1.32570833,4290.4,4290.3,0.7051]
[1757095504435,1.32570833,4290.4,4290.3,0.4113]
[1757095504834,1.32570833,4290.4,4290.3,0.7051]
[1757095505239,1.32570833,4290.4,4290.3,0.4113]
[1757095505936,1.32570833,4290.4,4290.3,0.7051]
[1757095506528,0.60540833,4290.4,4289.8,3.2078]
[1757095506729,0.7203,4289.9,4289.8,3.9129]
[1757095510443,0.5257,4289.9,4289.8,3.9129]
[1757095510639,0.3198,4289.9,4289.8,3.9129]
[1757095512334,0.4005,4290.4,4290.3,0.4113]
[1757095512637,1.32467293,4290.4,4290.3,0.4113]
[1757095512841,0.60437293,4290.4,4290.3,3.9129]
[1757095513037,0.5257,4290.6,4290.5,0.7051]
[1757095513439,0.7203,4290.6,4290.5,0.4113]
[1757095513643,1.32471571,4290.6,4290.5,0.4113]
[1757095514633,0.3198,4290.9,4290.5,0.4113]
[1757095514837,0.3198,4290.9,4290.8,0.2938]
[1757095515037,0.5257,4290.9,4290.8,0.7051]
[1757095515838,0.3198,4291.2,4290.8,0.4113]
[1757095516038,0.81009504,4291.1,4291.0,0.7051]
[1757095516235,0.1227,4291.5,4291.0,0.7051]